fUSD/lending_fUSD_20240216
["ID","MTS","AMOUNT","RATE_DAILY","PERIOD"]
[314231821,1708104668269,-500.0,0.00049589,60]
[314231822,1708104668278,-500.0,0.00049589,60]
[314231823,1708104668287,-500.0,0.00049589,60]
[314231824,1708104668296,-677.76,0.00049589,60]
[314231825,1708104668305,-500.0,0.00049589,60]
[314231826,1708104668314,-500.0,0.00049589,60]
[314231827,1708104668323,-557.74645735,0.00049589,60]
[314231828,1708104668333,-500.0,0.00049589,7]
[314231829,1708104668342,-500.0,0.00049589,60]
[314231830,1708104668351,-564.21,0.00049589,60]
[314231831,1708104668360,-662.25,0.00049589,60]
[314231832,1708104668370,-500.0,0.00049589,60]
[314231833,1708104668378,-500.0,0.00049589,60]
[314231834,1708104668387,-500.0,0.00049589,60]
[314231835,1708104668396,-500.0,0.00049589,60]
[314231836,1708104668406,-500.0,0.00049589,60]
[314231837,1708104668415,-500.0,0.00049589,60]
[314231838,1708104668425,-500.0,0.00049589,60]
[314231839,1708104668435,-500.0,0.00049589,60]
[314231840,1708104668443,-500.0,0.00049589,60]
[314231841,1708104668453,-1000.0,0.00049589,60]
[314231842,1708104668463,-500.0,0.00049589,60]
[314231843,1708104668472,-500.0,0.00049589,60]
[314231844,1708104668481,-500.0,0.00049589,60]
[314231845,1708104668490,-500.0,0.00049589,60]
[314231846,1708104668499,-738.54,0.00049589,60]
[314231847,1708104668509,-500.0,0.00049589,60]
[314231848,1708104668518,-500.0,0.00049589,60]
[314231849,1708104668527,-500.0,0.00049589,60]
[314231850,1708104668536,-500.0,0.00049589,60]
[314231851,1708104668545,-658.54,0.00049589,60]
[314231852,1708104668555,-500.0,0.00049589,60]
[314231853,1708104668564,-500.0,0.00049589,60]
[314231854,1708104668574,-500.0,0.00049589,60]
[314231855,1708104668583,-500.0,0.00049589,60]
[314231856,1708104668592,-500.0,0.00049589,60]
[314231857,1708104668602,-500.0,0.00049589,60]
[314231858,1708104668612,-500.0,0.00049589,60]
[314231859,1708104668622,-1931.51,0.00049589,60]
[314231860,1708104668632,-500.0,0.00049589,60]
[314231861,1708104668641,-500.0,0.00049589,60]
[314231862,1708104668650,-500.0,0.00049589,60]
[314231863,1708104668659,-500.0,0.00049589,60]
[314231864,1708104668668,-500.05,0.00049589,60]
[314231865,1708104668677,-500.0,0.00049589,60]
[314231866,1708104668687,-500.0,0.00049589,60]
[314231867,1708104668696,-247.13129791,0.00049589,60]
[314231868,1708104668705,-507.94298663,0.00049589,60]
[314231869,1708104668714,-2375.21,0.00049589,60]
[314231870,1708104668723,-7087.45,0.00049589,60]
[314231871,1708104668733,-612.83339195,0.00049589,4]
[314231872,1708104668745,-500.0,0.00049589,60]
[314231873,1708104668754,-551.62286356,0.00049589,60]
[314231874,1708104668763,-500.0,0.00049589,60]
[314231875,1708104668772,-500.0,0.00049589,60]
[314231876,1708104668782,-584.91,0.00049589,60]
[314231877,1708104668791,-500.0,0.00049589,60]
[314231878,1708104668801,-773.71,0.00049589,60]
[314231879,1708104668811,-500.0,0.00049589,60]
[314231880,1708104668822,-500.0,0.00049589,60]
[314231881,1708104668832,-500.0,0.00049589,60]
[314231882,1708104668841,-500.0,0.00049589,60]
[314231883,1708104668850,-678.94,0.00049589,60]
[314231884,1708104668859,-2129.55,0.00049589,60]
[314231885,1708104668869,-500.0,0.00049589,60]
[314231886,1708104668878,-500.0,0.00049589,60]
[314231887,1708104668887,-1605.91,0.00049589,60]
[314231888,1708104668896,-500.0,0.00049589,60]
[314231889,1708104668906,-500.0,0.00049589,60]
[314231890,1708104668915,-500.0,0.00049589,60]
[314231891,1708104668924,-500.0,0.00049589,60]
[314231892,1708104668933,-500.0,0.00049589,60]
[314231893,1708104668942,-500.0,0.00049589,60]
[314231894,1708104668952,-500.0,0.00049589,60]
[314231895,1708104668962,-500.0,0.00049589,60]
[314231896,1708104668971,-500.0,0.00049589,60]
[314231897,1708104668980,-500.0,0.00049589,60]
[314231898,1708104668990,-500.0,0.00049589,60]
[314231899,1708104668999,-3132.65,0.00049589,60]
[314231900,1708104669008,-3467.49,0.00049589,60]
[314231901,1708104669017,-500.0,0.00049589,60]
[314231902,1708104669026,-500.0,0.00049589,60]
[314231903,1708104669035,-500.0,0.00049589,60]
[314231904,1708104669044,-2609.97,0.00049589,60]
[314231905,1708104669053,-500.0,0.00049589,60]
[314231906,1708104669062,-1180.76,0.00049589,60]
[314231907,1708104669071,-501.97454668,0.00049589,60]
[314231908,1708104669080,-150.0,0.00049589,60]
[314231909,1708104669089,-9180.1,0.00049589,60]
[314231910,1708104669098,-500.0,0.00049589,60]
[314231911,1708104669107,-500.0,0.00049589,60]
[314231912,1708104669118,-500.0,0.00049589,60]
[314231913,1708104669127,-500.0,0.00049589,60]
[314231914,1708104669136,-500.0,0.00049589,60]
[314231915,1708104669146,-3315.38,0.00049589,60]
[314231916,1708104669155,-265.51991546,0.00049589,60]
[314231917,1708104669165,-1052.12,0.00049589,60]
[314231918,1708104669174,-500.0,0.00049589,60]
[314231919,1708104669183,-500.0,0.00049589,60]
[314231920,1708104669192,-444.62,0.00049589,60]
[314231921,1708104669201,-503.42,0.00049589,60]
[314231922,1708104669211,-500.0,0.00049589,60]
[314231923,1708104669221,-500.0,0.00049589,60]
[314231924,1708104669230,-500.0,0.00049589,60]
[314231926,1708104669239,-500.0,0.00049589,60]
[314231927,1708104669248,-500.0,0.00049589,60]
[314231928,1708104669257,-500.0,0.00049589,60]
[314231930,1708104669267,-4914.67,0.00049589,60]
[314231931,1708104669276,-500.0,0.00049589,60]
[314231932,1708104669285,-1357.58,0.00049589,60]
[314231934,1708104669294,-500.0,0.00049589,60]
[314231935,1708104669303,-500.0,0.00049589,60]
[314231937,1708104669312,-211.53207368,0.00049589,60]
[314231938,1708104669321,-500.0,0.00049589,60]
[314231939,1708104669330,-500.0,0.00049589,60]
[314231941,1708104669339,-638.65,0.00049589,60]
[314231942,1708104669348,-772.77,0.00049589,60]
[314231943,1708104669357,-500.0,0.00049589,60]
[314231945,1708104669366,-500.0,0.00049589,60]
[314231946,1708104669375,-500.0,0.00049589,60]
[314231947,1708104669385,-500.0,0.00049589,60]
[314231948,1708104669394,-500.0,0.00049589,60]
[314231949,1708104669404,-500.0,0.00049589,60]
[314231950,1708104669413,-619.71,0.00049589,60]
[314231951,1708104669422,-500.0,0.00049589,60]
[314231952,1708104669431,-500.0,0.00049589,60]
[314231953,1708104669440,-500.0,0.00049589,60]
[314231954,1708104669450,-500.0,0.00049589,60]
[314231955,1708104669458,-500.0,0.00049589,60]
[314231956,1708104669467,-2994.72,0.00049589,60]
[314231957,1708104669477,-500.0,0.00049589,60]
[314231958,1708104669486,-2925.7,0.00049589,60]
[314231959,1708104669495,-500.0,0.00049589,60]
[314231960,1708104669505,-500.0,0.00049589,60]
[314231961,1708104669514,-500.0,0.00049589,30]
[314231962,1708104669523,-522.04,0.00049589,60]
[314231963,1708104669533,-500.0,0.00049589,60]
[314231964,1708104669542,-500.0,0.00049589,60]
[314231965,1708104669551,-500.0,0.00049589,60]
[314231966,1708104669560,-500.0,0.00049589,60]
[314231967,1708104669569,-500.0,0.00049589,60]
[314231968,1708104669578,-500.0,0.00049589,60]
[314231969,1708104669588,-500.0,0.00049589,60]
[314231970,1708104669597,-1400.58,0.00049589,60]
[314231971,1708104669607,-873.92,0.00049589,60]
[314231972,1708104669616,-500.0,0.00049589,60]
[314231973,1708104669625,-500.0,0.00049589,60]
[314231974,1708104669636,-500.0,0.00049589,60]
[314231975,1708104669644,-329.21627866,0.00049589,60]
[314231976,1708104669653,-1568.0,0.00049589,60]
[314231977,1708104669663,-151.0,0.00049589,120]
[314231978,1708104669672,-208.9788799,0.00049589,60]
[314231979,1708104669682,-297.00197026,0.00049589,60]
[314231980,1708104669691,-500.0,0.00049589,60]
[314231981,1708104669701,-754.8,0.00049589,60]
[314231982,1708104669710,-500.0,0.00049589,60]
[314231983,1708104669720,-500.0,0.00049589,60]
[314231984,1708104669731,-500.0,0.00049589,60]
[314231985,1708104669747,-151.0,0.00049589,120]
[314231986,1708104669757,-500.0,0.00049589,60]
[314231987,1708104669766,-500.0,0.00049589,60]
[314231988,1708104669776,-511.58863827,0.00049589,60]
[314231989,1708104669785,-500.0,0.00049589,60]
[314231990,1708104669794,-15284.7,0.00049589,60]
[314231991,1708104669804,-1297.49,0.00049589,60]
[314231992,1708104669814,-500.0,0.00049589,60]
[314231993,1708104669824,-500.0,0.00049589,2]
[314231994,1708104669833,-430.76858225,0.00049589,60]
[314231995,1708104669842,-500.0,0.00049589,60]
[314231996,1708104669851,-500.0,0.00049589,60]
[314231997,1708104669860,-500.0,0.00049589,60]
[314231998,1708104669870,-1633.07,0.00049589,60]
[314231999,1708104669878,-500.0,0.00049589,60]
[314232000,1708104669888,-500.0,0.00049589,60]
[314232001,1708104669897,-500.0,0.00049589,60]
[314232002,1708104669906,-500.0,0.00049589,60]
[314232003,1708104669915,-6990.1,0.00049589,60]
[314232004,1708104669924,-275.60483469,0.00049589,60]
[314232005,1708104669934,-250.0,0.00049589,60]
[314232006,1708104669942,-500.79,0.00049589,60]
[314232007,1708104669952,-804.57,0.00049589,60]
[314232008,1708104669961,-639.42,0.00049589,60]
[314232009,1708104669970,-500.0,0.00049589,60]
[314232010,1708104669979,-500.0,0.00049589,60]
[314232011,1708104669988,-500.0,0.00049589,60]
[314232012,1708104669997,-500.0,0.00049589,60]
[314232013,1708104670006,-500.0,0.00049589,60]
[314232014,1708104670016,-4800.73,0.00049589,60]
[314232015,1708104670025,-1502.13,0.00049589,60]
[314232016,1708104670034,-2427.37,0.00049589,60]
[314232017,1708104670043,-500.0,0.00049589,60]
[314232018,1708104670052,-500.0,0.00049589,60]
[314232019,1708104670061,-500.0,0.00049589,60]
[314232020,1708104670070,-500.0,0.00049589,60]
[314232021,1708104670079,-6316.21,0.00049589,60]
[314232022,1708104670088,-500.0,0.00049589,60]
[314232023,1708104670097,-500.0,0.00049589,60]
[314232024,1708104670106,-3954.65,0.00049589,60]
[314232025,1708104670115,-500.0,0.00049589,60]
[314232026,1708104670126,-500.0,0.00049589,60]
[314232027,1708104670135,-500.0,0.00049589,60]
[314232028,1708104670144,-2091.44,0.00049589,60]
[314232029,1708104670153,-500.0,0.00049589,60]
[314232030,1708104670162,-500.0,0.00049589,60]
[314232031,1708104670171,-500.0,0.00049589,60]
[314232032,1708104670180,-1150.23,0.00049589,60]
[314232033,1708104670189,-500.0,0.00049589,60]
[314232034,1708104670198,-500.0,0.00049589,60]
[314232035,1708104670207,-500.0,0.00049589,60]
[314232036,1708104670216,-500.0,0.00049589,60]
[314232037,1708104670226,-500.0,0.00049589,60]
[314232038,1708104670235,-523.98588827,0.00049589,60]
[314232039,1708104670244,-500.0,0.00049589,60]
[314232040,1708104670254,-500.0,0.00049589,60]
[314232041,1708104670263,-665.63,0.00049589,60]
[314232042,1708104670403,-594.91797459,0.00049589,60]
[314232043,1708104670413,-500.0,0.00049589,60]
[314232044,1708104670423,-587.26438532,0.00049589,60]
[314232045,1708104670432,-500.0,0.00049589,60]
[314232046,1708104670442,-500.0,0.00049589,60]
[314232047,1708104670451,-500.0,0.00049589,60]
[314232048,1708104670461,-586.95,0.00049589,60]
[314232049,1708104670470,-500.0,0.00049589,60]
[314232050,1708104670480,-1143.28,0.00049589,60]
[314232051,1708104670489,-500.0,0.00049589,60]
[314232052,1708104670499,-928.06,0.00049589,60]
[314232053,1708104670509,-5818.47,0.00049589,60]
[314232054,1708104670519,-500.0,0.00049589,60]
[314232055,1708104670528,-10000.0,0.00049589,60]
[314232056,1708104670538,-515.69,0.00049589,60]
[314232057,1708104670548,-500.0,0.00049589,60]
[314232058,1708104670558,-594.35,0.00049589,60]
[314232059,1708104670567,-752.48,0.00049589,60]
[314232060,1708104670576,-500.0,0.00049589,60]
[314232061,1708104670586,-500.0,0.00049589,60]
[314232062,1708104670596,-500.0,0.00049589,60]
[314232063,1708104670606,-664.82,0.00049589,60]
[314232064,1708104670616,-500.0,0.00049589,60]
[314232065,1708104670626,-595.96322212,0.00049589,60]
[314232066,1708104670635,-500.0,0.00049589,60]
[314232067,1708104670645,-151.0,0.00049589,14]
[314232068,1708104670654,-2585.68,0.00049589,60]
[314232069,1708104670665,-875.45,0.00049589,60]
[314232070,1708104670674,-500.0,0.00049589,60]
[314232071,1708104670683,-14931.24,0.00049589,60]
[314232072,1708104670693,-500.0,0.00049589,60]
[314232073,1708104670702,-700.9,0.00049589,60]
[314232074,1708104670712,-500.0,0.00049589,60]
[314232075,1708104670721,-503.80535867,0.00049589,60]
[314232076,1708104670731,-500.0,0.00049589,60]
[314232077,1708104670744,-500.0,0.00049589,60]
[314232078,1708104670753,-10361.64,0.00049589,60]
[314232079,1708104670770,-500.0,0.00049589,60]
[314232080,1708104670783,-2784.1,0.00049589,60]
[314232081,1708104670793,-500.0,0.00049589,60]
[314232082,1708104670802,-500.0,0.00049589,60]
[314232083,1708104670813,-500.0,0.00049589,60]
[314232084,1708104670822,-500.0,0.00049589,60]
[314232085,1708104670832,-500.0,0.00049589,60]
[314232086,1708104670842,-1157.28,0.00049589,60]
[314232087,1708104670851,-500.0,0.00049589,60]
[314232088,1708104670861,-500.0,0.00049589,60]
[314232089,1708104670872,-500.0,0.00049589,60]
[314232090,1708104670883,-540.82,0.00049589,60]
[314232091,1708104670893,-622.57,0.00049589,60]
[314232092,1708104670905,-9044.76,0.00049589,60]
[314232093,1708104670915,-500.0,0.00049589,60]
[314232094,1708104670926,-918.82,0.00049589,60]
[314232095,1708104670937,-1294.67,0.00049589,60]
[314232096,1708104670948,-151.0,0.00049589,120]
[314232097,1708104670959,-500.0,0.00049589,60]
[314232098,1708104670970,-500.0,0.00049589,60]
[314232099,1708104670980,-1444.04,0.00049589,60]
[314232100,1708104670990,-1853.43,0.00049589,60]
[314232101,1708104671001,-151.0,0.00049589,120]
[314232102,1708104671011,-500.0,0.00049589,60]
[314232103,1708104671021,-500.0,0.00049589,60]
[314232104,1708104671031,-2471.66,0.00049589,60]
[314232105,1708104671041,-500.0,0.00049589,60]
[314232106,1708104671050,-512.30063503,0.00049589,60]
[314232107,1708104671060,-500.0,0.00049589,60]
[314232108,1708104671070,-500.0,0.00049589,60]
[314232109,1708104671080,-500.0,0.00049589,60]
[314232110,1708104671089,-963.54,0.00049589,60]
[314232111,1708104671099,-500.0,0.00049589,60]
[314232112,1708104671109,-500.0,0.00049589,60]
[314232113,1708104671119,-500.0,0.00049589,60]
[314232114,1708104671133,-947.33,0.00049589,60]
[314232115,1708104671143,-500.0,0.00049589,60]
[314232116,1708104671152,-500.0,0.00049589,60]
[314232117,1708104671162,-500.0,0.00049589,60]
[314232118,1708104671173,-1068.44,0.00049589,60]
[314232119,1708104671183,-500.0,0.00049589,60]
[314232120,1708104671193,-500.0,0.00049589,60]
[314232121,1708104671202,-500.0,0.00049589,60]
[314232122,1708104671212,-3996.45,0.00049589,60]
[314232123,1708104671222,-2522.63,0.00049589,60]
[314232124,1708104671231,-500.0,0.00049589,60]
[314232125,1708104671241,-711.26,0.00049589,60]
[314232126,1708104671252,-1143.92,0.00049589,60]
[314232127,1708104671262,-500.0,0.00049589,60]
[314232128,1708104671272,-505.05,0.00049589,60]
[314232129,1708104671282,-1709.74,0.00049589,60]
[314232130,1708104671292,-3964.42,0.00049589,60]
[314232131,1708104671302,-1641.86,0.00049589,60]
[314232132,1708104671313,-592.08,0.00049589,60]
[314232133,1708104671323,-2080.43,0.00049589,60]
[314232134,1708104671333,-500.0,0.00049589,60]
[314232135,1708104671343,-1039.84,0.00049589,60]
[314232136,1708104671353,-500.0,0.00049589,60]
[314232137,1708104671363,-1398.41,0.00049589,60]
[314232138,1708104671378,-2840.51,0.00049589,60]
[314232139,1708104671388,-500.0,0.00049589,60]
[314232140,1708104671397,-500.0,0.00049589,60]
[314232141,1708104671407,-500.0,0.00049589,60]
[314232142,1708104671417,-500.0,0.00049589,60]
[314232143,1708104671427,-500.0,0.00049589,60]
[314232144,1708104671436,-8156.96,0.00049589,60]
[314232145,1708104671446,-685.07,0.00049589,60]
[314232146,1708104671456,-500.0,0.00049589,60]
[314232147,1708104671466,-590.47,0.00049589,60]
[314232148,1708104671475,-762.46,0.00049589,60]
[314232149,1708104671485,-1228.34,0.00049589,60]
[314232150,1708104671495,-500.0,0.00049589,60]
[314232151,1708104671504,-500.0,0.00049589,60]
[314232152,1708104671514,-500.0,0.00049589,60]
[314232153,1708104671524,-500.0,0.00049589,60]
[314232154,1708104671533,-500.0,0.00049589,60]
[314232155,1708104671543,-729.61,0.00049589,60]
[314232156,1708104671552,-500.0,0.00049589,60]
[314232157,1708104671562,-500.0,0.00049589,60]
[314232158,1708104671571,-6977.02,0.00049589,14]
[314232159,1708104671581,-500.0,0.00049589,60]
[314232160,1708104671591,-942.28,0.00049589,60]
[314232161,1708104671601,-500.0,0.00049589,60]
[314232162,1708104671611,-500.0,0.00049589,60]
[314232163,1708104671624,-500.0,0.00049589,60]
[314232164,1708104671634,-3652.37,0.00049589,60]
[314232165,1708104671643,-500.0,0.00049589,60]
[314232166,1708104671653,-500.0,0.00049589,60]
[314232167,1708104671662,-758.16,0.00049589,60]
[314232168,1708104671672,-500.0,0.00049589,60]
[314232169,1708104671682,-1208.07,0.00049589,60]
[314232170,1708104671691,-500.0,0.00049589,60]
[314232171,1708104671701,-500.0,0.00049589,60]
[314232172,1708104671710,-1122.32,0.00049589,60]
[314232173,1708104671719,-3186.88,0.00049589,60]
[314232174,1708104671729,-985.63,0.00049589,60]
[314232175,1708104671739,-500.0,0.00049589,60]
[314232176,1708104671752,-500.0,0.00049589,60]
[314232177,1708104671761,-2758.88,0.00049589,60]
[314232178,1708104671771,-500.0,0.00049589,60]
[314232179,1708104671780,-500.0,0.00049589,60]
[314232180,1708104671791,-500.0,0.00049589,60]
[314232181,1708104671801,-500.0,0.00049589,14]
[314232182,1708104671810,-500.0,0.00049589,60]
[314232183,1708104671819,-500.0,0.00049589,60]
[314232184,1708104671830,-2058.8,0.00049589,60]
[314232185,1708104671839,-500.0,0.00049589,60]
[314232186,1708104671848,-500.0,0.00049589,60]
[314232187,1708104671858,-500.0,0.00049589,60]
[314232188,1708104671867,-500.0,0.00049589,2]
[314232189,1708104671878,-500.0,0.00049589,60]
[314232190,1708104671887,-500.0,0.00049589,60]
[314232191,1708104671896,-719.99,0.00049589,60]
[314232192,1708104671906,-7688.18,0.00049589,60]
[314232193,1708104671915,-521.8909405,0.00049589,60]
[314232194,1708104671924,-505.82789939,0.00049589,60]
[314232195,1708104671934,-500.0,0.00049589,60]
[314232196,1708104671944,-500.0,0.00049589,60]
[314232197,1708104671953,-500.0,0.00049589,60]
[314232198,1708104671963,-1750.5,0.00049589,60]
[314232199,1708104671973,-500.0,0.00049589,60]
[314232200,1708104671982,-3607.52,0.00049589,60]
[314232201,1708104671992,-500.0,0.00049589,60]
[314232202,1708104672001,-159.662109,0.00049589,120]
[314232203,1708104672010,-500.0,0.00049589,60]
[314232204,1708104672019,-500.0,0.00049589,60]
[314232205,1708104672029,-500.0,0.00049589,60]
[314232206,1708104672038,-1245.22,0.00049589,60]
[314232207,1708104672047,-514.78,0.00049589,60]
[314232208,1708104672056,-500.0,0.00049589,60]
[314232209,1708104672066,-2861.59,0.00049589,60]
[314232210,1708104672075,-736.24,0.00049589,60]
[314232211,1708104672084,-1000.0,0.00049589,2]
[314232212,1708104672093,-500.0,0.00049589,60]
[314232213,1708104672102,-922.04,0.00049589,60]
[314232214,1708104672111,-587.12,0.00049589,60]
[314232215,1708104672123,-594.95,0.00049589,60]
[314232216,1708104672132,-1992.57,0.00049589,60]
[314232217,1708104672142,-500.0,0.00049589,60]
[314232218,1708104672151,-500.0,0.00049589,60]
[314232219,1708104672160,-551.81,0.00049589,60]
[314232220,1708104672169,-500.0,0.00049589,60]
[314232221,1708104672179,-1151.86,0.00049589,60]
[314232222,1708104672188,-500.0,0.00049589,60]
[314232223,1708104672197,-788.66,0.00049589,60]
[314232224,1708104672207,-500.0,0.00049589,60]
[314232225,1708104672217,-719.82,0.00049589,60]
[314232226,1708104672226,-500.0,0.00049589,60]
[314232227,1708104672235,-500.0,0.00049589,60]
[314232228,1708104672244,-500.0,0.00049589,60]
[314232229,1708104672253,-569.85,0.00049589,60]
[314232230,1708104672262,-666.37,0.00049589,60]
[314232231,1708104672271,-2442.82,0.00049589,60]
[314232232,1708104672281,-704.08,0.00049589,60]
[314232233,1708104672290,-502.33,0.00049589,60]
[314232234,1708104672299,-500.0,0.00049589,60]
[314232235,1708104672309,-1232.95,0.00049589,60]
[314232236,1708104672319,-1245.23,0.00049589,60]
[314232237,1708104672328,-500.0,0.00049589,30]
[314232238,1708104672337,-2413.25,0.00049589,60]
[314232239,1708104672346,-1366.93,0.00049589,60]
[314232240,1708104672356,-500.0,0.00049589,60]
[314232241,1708104672365,-604.08,0.00049589,60]
[314232242,1708104672377,-500.0,0.00049589,60]
[314232243,1708104672523,-500.0,0.00049589,7]
[314232244,1708104672546,-2108.34,0.00049589,60]
[314232245,1708104672555,-500.0,0.00049589,60]
[314232246,1708104672565,-500.0,0.00049589,60]
[314232247,1708104672575,-798.93,0.00049589,60]
[314232248,1708104672584,-500.0,0.00049589,60]
[314232249,1708104672595,-500.0,0.00049589,2]
[314232250,1708104672605,-500.0,0.00049589,60]
[314232251,1708104672614,-578.67,0.00049589,60]
[314232252,1708104672626,-525.58,0.00049589,60]
[314232253,1708104672636,-500.0,0.00049589,60]
[314232254,1708104672646,-500.0,0.00049589,60]
[314232255,1708104672656,-664.68,0.00049589,60]
[314232256,1708104672666,-500.0,0.00049589,60]
[314232257,1708104672675,-1013.32,0.00049589,60]
[314232258,1708104672685,-500.0,0.00049589,60]
[314232259,1708104672695,-500.0,0.00049589,60]
[314232260,1708104672704,-500.0,0.00049589,60]
[314232261,1708104672714,-886.79,0.00049589,60]
[314232262,1708104672723,-500.0,0.00049589,60]
[314232263,1708104672733,-500.0,0.00049589,60]
[314232264,1708104672743,-500.0,0.00049589,60]
[314232265,1708104672754,-629.13,0.00049589,60]
[314232266,1708104672763,-500.0,0.00049589,60]
[314232267,1708104672772,-500.0,0.00049589,60]
[314232268,1708104672782,-603.95,0.00049589,60]
[314232269,1708104672793,-240.48411378,0.00049589,60]
[314232270,1708104672802,-500.0,0.00049589,60]
[314232271,1708104672811,-500.0,0.00049589,60]
[314232272,1708104672823,-500.0,0.00049589,60]
[314232273,1708104672833,-500.0,0.00049589,60]
[314232274,1708104672842,-1282.02,0.00049589,60]
[314232275,1708104672852,-3751.22,0.00049589,60]
[314232276,1708104672861,-787.14,0.00049589,60]
[314232277,1708104672872,-500.0,0.00049589,60]
[314232278,1708104672881,-500.0,0.00049589,60]
[314232279,1708104672890,-628.45,0.00049589,60]
[314232280,1708104672899,-1184.98,0.00049589,60]
[314232281,1708104672908,-1086.22,0.00049589,60]
[314232282,1708104672918,-500.0,0.00049589,60]
[314232283,1708104672927,-542.16,0.00049589,60]
[314232284,1708104672936,-500.0,0.00049589,60]
[314232285,1708104672946,-500.0,0.00049589,60]
[314232286,1708104672955,-437.3,0.000496,7]
[314232287,1708104672964,-232.0,0.00049643,30]
[314232288,1708104672974,-3000.72069588,0.00049668,30]
[314232289,1708104672984,-3000.72069588,0.00049686,30]
[314232290,1708104672993,-2238.64321705,0.00049687,30]
[314232291,1708104673003,-355.84824712,0.000497,2]
[314232292,1708104673012,-3096.5,0.000497,2]
[314232293,1708104673021,-7298.09951935,0.00049729,30]
[314232294,1708104673031,-7298.09951935,0.00049735,30]
[314232295,1708104673040,-3000.72069588,0.00049745,30]
[314232296,1708104673050,-7298.09951935,0.00049755,30]
[314232297,1708104673059,-155.0,0.00049755,60]
[314232298,1708104673069,-340.52925205,0.00049761,30]
[314232299,1708104673078,-155.0,0.00049763,60]
[314232300,1708104673088,-7405.858601,0.0004978,11]
[314232301,1708104673098,-340.52925205,0.00049783,30]
[314232302,1708104673107,-340.52925205,0.00049794,30]
[314232303,1708104673117,-200.0,0.00049797,57]
[314232304,1708104673128,-200.0,0.00049797,55]
[314232305,1708104673137,-200.0,0.00049797,54]
[314232306,1708104673147,-920.05128038,0.00049797,2]
[314232307,1708104673158,-151.021737,0.00049798,38]
[314232308,1708104673167,-150.0,0.00049799,9]
[314232309,1708104673177,-160.53562289,0.00049799,9]
[314232310,1708104673187,-285445.0,0.000498,32]
[314232311,1708104673196,-500000.0,0.000498,36]
[314232312,1708104673205,-112166.24410424,0.000498,30]
[314232313,1708104673214,-50544.13811403,0.000498,60]
[314232314,1708104673224,-425046.67520268,0.000498,36]
[314232315,1708104674150,-27459.57413766,0.000498,36]
[314232316,1708104674207,-184.14444376,0.00042,2]
[314232317,1708104674216,-150.13935477,0.00049315,60]
[314232318,1708104674229,-349.86064523,0.00049315,60]
[314232319,1708104674238,-536.16,0.00049589,60]
[314232320,1708104674248,-27264.96107504,0.000498,36]
[314232321,1708104674715,-309.58400008,0.000498,36]
[314232322,1708104674738,-184.14444376,0.00042,2]
[314232323,1708104674750,-1215.85555624,0.000498,36]
[314232324,1708104675306,-3.33e-05,0.00042,2]
[314232325,1708104676127,-184.14441046,0.00042,2]
[314232326,1708104676136,-184.14444376,0.00042,2]